[Event "SVK ECo-C Extraliga 2021-22"]
[Site "Slovakia"]
[Date "2022.06.10"]
[Round "9.1"]
[White "Babula, Vlastimil"]
[Black "Vetoshko, Volodymyr"]
[Result "1/2-1/2"]
[ECO "D31"]
[WhiteElo "2558"]
[BlackElo "2500"]
[Annotator "TA"]
[PlyCount "96"]
[EventDate "2021.10.21"]
[EventType "team-tourn"]
[EventCountry "SVK"]
[SourceTitle "playchess.com"]
[Source "ChessBase"]
[SourceQuality "1"]
[TimeControl "40/5400+30:1800+30"]

{[%evp 9,96,6,31,0,0,2,52,53,101,109,144,127,209,190,194,211,183,125,129,13,14,12,13,21,28,14,6,0,0,0,-5,-5,18,16,54,51,54,54,59,77,52,52,105,102,555,529,501,445,895,868,692,439,893,393,393,372,1672,438,438,0,0,0,0,0,0,0,0,0,0,0,0,0,0,0,0,0,0,0,0,0,0,0,0,0,0,0,0,0,0]} 1. d4 {[%emt 0:00:05]} d5 {[%emt 0:00:24]} 2. c4 {[%emt 0:00:16]} e6 {[%emt 0:00:18]} 3. Nc3 {[%emt 0:00:27]} a6 {[%emt 0:00:15]} 4. cxd5 {[%emt 0:03:12]} exd5 {[%emt 0:00:42]} 5. Qb3 {[%emt 0:02:47]} c5 {[%emt 0:17:18]} 6. Nxd5 {[%emt 0:09:17] D31: Queen's Gambit Declined: Semi-Slav without ...Nf6 (+ Marshall Gambit and Noteboom) and Exchange Variation lines without ...Nf6.} Nc6 {[%emt 0:11:31]} 7. Nf3 {[%emt 0:04:13]} Be6 {[%emt 0:18:46]} (7... cxd4 $11 8. e4 dxe3 9. Bxe3 (9. Qxe3+ Be6 $11) 9... Be6) 8. e4 $14 {[%emt 0:03:02] White is slightly better.} cxd4 {[%emt 0:12:58]} (8... Nge7 $14 {feels stronger.}) 9. Bd2 $16 {[%emt 0:12:50]} (9. Qxb7 Bxd5 10. exd5 Na5 11. Bb5+ axb5 12. Qxb5+ Qd7 $17) 9... Rb8 {[%emt 0:20:23]} 10. Ng5 $1 {[%emt 0:08:14] [#] White is much more active.} Bxd5 $146 {[%emt 0:03:44]} (10... Bd6 $16 {keeps fighting.}) ({Predecessor:} 10... Bd6 11. Nxe6 fxe6 12. Nf4 e5 13. Nh5 Qe7 14. Bc4 Nf6 15. Nxf6+ Qxf6 16. O-O Ke7 {0-1 (51) Volkov,S (2557)-Yudin,S (2484) Barnaul 2021}) 11. exd5 $18 {[%emt 0:01:36]} (11. Qxd5 Qxd5 12. exd5 Nb4 $14) 11... Bb4 {[%emt 0:00:35]} 12. Bxb4 {[%emt 0:20:21]} Nxb4 {[%emt 0:00:08]} 13. Qxb4 {[%emt 0:01:15]} (13. Nxf7 $18 Qe7+ 14. Kd2 Qxf7 15. Re1+ (15. Qxb4 Qxf2+ 16. Be2 Ne7 $14) 15... Ne7 16. Qxb4) 13... Qxg5 $16 {[%emt 0:00:04]} 14. Qxd4 {[%emt 0:03:50]} (14. Bxa6 $1 $16 {White wants to mate with Bb5+.} Qe7+ 15. Qxe7+ Kxe7 16. Bc4) 14... Nf6 $11 {[%emt 0:01:07]} 15. Bc4 {[%emt 0:01:40]} b5 {[%emt 0:03:56]} 16. Bb3 {[%emt 0:04:29]} Qxg2 {[%emt 0:00:06]} 17. O-O-O {[%emt 0:02:32]} ({Much weaker is} 17. Qe5+ Kd7 18. Qf5+ Kd8 $15) 17... O-O $1 {[%emt 0:00:14]} 18. Rhe1 {[%emt 0:07:27]} Qg6 {[%emt 0:01:12] Strongly threatening ...Rbc8+.} 19. Qd3 {[%emt 0:08:08]} Qxd3 20. Rxd3 {[%emt 0:00:34]} Nd7 {[%emt 0:06:15]} 21. Rc3 {[%emt 0:01:15]} Rfc8 {[%emt 0:00:27]} 22. d6 {[%emt 0:01:25]} Rxc3+ 23. bxc3 $14 {[%emt 0:00:02][%mdl 4096] Endgame KRB-KRN} Nc5 {[%emt 0:00:41] aiming for ...Nd3+.} 24. Re7 {[%emt 0:00:52]} Rd8 {[%emt 0:00:43]} 25. Rc7 $1 {[%emt 0:01:15]} ({Much worse is} 25. Bxf7+ Kf8 $11) 25... Nxb3+ (25... Nd7 $1 $14) 26. axb3 {[%emt 0:00:02][%cal Ba2b3,Bb3c4,Bc4c5][%mdl 32] KR-KR} f6 $2 {[%emt 0:01:08][%mdl 8192]} (26... Kf8 $16 {is more resistant.}) 27. Rc6 $1 $18 {[%emt 0:00:22]} Kf7 {[%emt 0:00:29]} 28. c4 $1 {[%emt 0:01:05]} bxc4 (28... Ke6 $142 29. c5 a5) 29. bxc4 {[%emt 0:00:02]} Ke6 {[%emt 0:00:51] [#]} 30. c5 $1 {[%emt 0:00:04]} a5 {[%emt 0:00:43]} (30... Rd7 $142 31. Rc8 (31. Rxa6 Kd5 $16) 31... a5) 31. Kb2 {[%emt 0:00:59]} (31. Rc7 $142 g5 32. Kb2) 31... Rd7 {[%emt 0:00:28]} 32. Ka3 {[%emt 0:00:26]} g5 $2 {[%emt 0:00:28]} (32... Rb7 33. Ka4 Ra7) 33. Ka4 {[%emt 0:00:34]} (33. Rc8 $142 {Black must now prevent Ka4.} h6 34. c6 Rxd6 35. Re8+ Kf7 36. c7 Kxe8 37. c8=Q+ Ke7 38. Qb7+ Kf8 39. Qh7) 33... Ra7 {[%emt 0:00:22] [#]} 34. Rc8 $2 {[%emt 0:02:09]} (34. Kb5 $1 $18) 34... Kd7 $11 {[%emt 0:00:12] The position is equal.} 35. Rf8 {[%emt 0:00:32]} Kc6 {[%emt 0:00:08]} 36. Rc8+ {[%emt 0:00:15]} Kd7 {[%emt 0:00:02]} 37. Rc7+ {[%emt 0:00:50]} Rxc7 {[%emt 0:00:05]} 38. dxc7 {[%emt 0:00:01]} Kxc7 {[%emt 0:01:49]} 39. Kxa5 {[%emt 0:00:02] K3P-K3P} Kc6 {[%emt 0:00:37]} 40. Kb4 {[%emt 0:00:01]} f5 {[%emt 0:00:50]} (40... g4 $5) 41. Kc4 {[%emt 0:30:53] Threatens to win with Kd4.} g4 {[%emt 0:30:25]} 42. Kd4 {[%emt 0:00:00]} h5 {[%emt 0:00:00]} 43. Ke5 {[%emt 0:00:00]} Kxc5 {[%emt 0:00:00]} 44. Kxf5 {[%emt 0:00:00]} Kd5 {[%emt 0:00:00]} 45. Kg5 {[%emt 0:00:00]} Ke4 {[%emt 0:00:00]} 46. Kh4 {[%emt 0:00:00]} Kf4 {[%emt 0:00:00]} 47. Kxh5 {[%emt 0:00:00]} Kf5 {[%emt 0:00:00]} 48. Kh6 {[%emt 0:00:00]} Kf6 $1 {[%emt 0:00:00] White really could win this.  Weighted Error Value: White=0.46/Black=0.29 (precise)} 1/2-1/2

[Event "SVK ECo-C Extraliga 2021-22"]
[Site "Slovakia"]
[Date "2022.06.10"]
[Round "9.1"]
[White "Krejci, Jan"]
[Black "Mazur, Stefan"]
[Result "1-0"]
[ECO "E71"]
[WhiteElo "2520"]
[BlackElo "2437"]
[Annotator "TA"]
[PlyCount "95"]
[EventDate "2021.10.21"]
[EventType "team-tourn"]
[EventCountry "SVK"]
[SourceTitle "playchess.com"]
[Source "ChessBase"]
[SourceQuality "1"]
[TimeControl "40/5400+30:1800+30"]

{[%evp 13,95,43,41,26,37,40,59,29,30,41,45,50,51,40,41,45,51,46,50,43,29,26,79,71,95,73,110,68,94,88,94,87,93,13,52,62,76,47,52,33,37,6,13,0,35,0,87,93,89,110,85,4,4,0,0,0,16,0,29,0,225,225,225,225,222,178,177,169,216,206,262,213,306,298,329,293,364,353,612,603,705,705,620,595]} 1. c4 {[%emt 0:00:05]} Nf6 {[%emt 0:00:27]} 2. d4 {[%emt 0:00:05][%cal Bd2d4,Bd4d5][%mdl 32]} g6 {[%emt 0:00:06]} 3. Nc3 {[%emt 0:00:03]} Bg7 {[%emt 0:00:05]} 4. e4 {[%emt 0:00:04]} d6 {[%emt 0:00:07]} 5. h3 {[%emt 0:00:03]} O-O {[%emt 0:00:19]} 6. Be3 {[%emt 0:00:03]} e5 {[%emt 0:00:27]} 7. d5 {[%emt 0:00:04]} Na6 {[%emt 0:00:33]} 8. g4 {[%emt 0:00:09] E71: King's Indian: 4 e4 d6 5 h3.} Nc5 {[%emt 0:00:19]} 9. f3 {[%emt 0:00:04]} a5 {[%emt 0:01:10]} 10. Qd2 {[%emt 0:00:05] White is slightly better.} (10. h4 $5 {[%cal Rh4h5]}) 10... c6 $1 {[%emt 0:08:44]} 11. Nge2 {[%emt 0:00:04][%cal Bg1e2,Be2c1,Bc1d3][%mdl 32]} cxd5 {[%emt 0:08:41]} 12. cxd5 {[%emt 0:00:02]} Bd7 {[%emt 0:01:07]} 13. Nc1 {[%emt 0:00:05] [#]} Rc8 $146 {[%emt 0:07:56][%cal Ob7b5]} ({Predecessor:} 13... a4 14. Nd3 Nxd3+ 15. Bxd3 Qa5 16. a3 Rfc8 17. O-O Ne8 18. Rac1 Nc7 19. Qf2 b5 {1-0 (38) Salem,A (2690)-Costachi,M (2463) Warsaw 2021}) 14. Nd3 {[%emt 0:00:54]} Na4 {[%emt 0:00:51]} 15. Nxa4 {[%emt 0:00:02]} Bxa4 {[%emt 0:00:08]} 16. Rc1 {[%emt 0:00:03] Against Rc2} Rxc1+ {[%emt 0:03:30]} 17. Nxc1 {[%emt 0:00:02]} Qc7 {[%emt 0:02:15]} (17... Ne8 $11) 18. Ne2 $16 {[%emt 0:08:04]} Bb5 {[%emt 0:11:41]} 19. Nc3 {[%emt 0:05:03]} Ba6 {[%emt 0:02:24]} 20. Nb5 {[%emt 0:11:13]} Bxb5 {[%emt 0:07:19]} 21. Bxb5 {[%emt 0:00:03]} Nd7 {[%emt 0:01:46]} 22. h4 {[%emt 0:11:03]} f5 {[%emt 0:02:10]} 23. h5 ({White should play} 23. exf5 $16 gxf5 24. gxf5) 23... f4 {[%emt 0:07:54]} 24. Bf2 {[%emt 0:03:48] This bishop pair is nice.} Rc8 {[%emt 0:00:25] And now ...Qc1+ would win.} 25. Ke2 {[%emt 0:06:42]} Bf6 {[%emt 0:04:17]} 26. hxg6 {[%emt 0:02:19]} (26. Qc3 {feels hotter.} Qd8 27. Qd3 Nc5 28. Qd2) 26... hxg6 {[%emt 0:05:01]} 27. Rd1 {[%emt 0:00:36]} Nf8 {[%emt 0:00:55]} 28. Bd3 {[%emt 0:07:18]} Bd8 {[%emt 0:00:26]} 29. Qe1 {[%emt 0:04:37]} a4 {[%emt 0:01:57]} (29... Nh7 $11) 30. Qb4 {[%emt 0:01:37]} Nd7 {[%emt 0:01:17]} 31. Qxa4 {[%emt 0:05:55] White is much more active.} Nc5 {[%emt 0:01:34]} 32. Qb5 {[%emt 0:03:22]} (32. Qc4 $16) 32... Nxd3 $11 {[%emt 0:00:37]} 33. Rxd3 {[%emt 0:03:11]} Qc1 {[%emt 0:06:23] ( -> ...Rc2+)} ({Don't play} 33... Qc2+ 34. Rd2 Qc1 35. Qb4 $16 (35. Qe8+ Kg7 $14)) 34. Rd2 {[%emt 0:10:33]} Kf8 {[%emt 0:01:11]} 35. a3 {[%emt 0:04:57]} Rc7 {[%emt 0:01:13]} 36. Qb4 {[%emt 0:04:34]} Ke8 $2 {[%emt 0:08:57]} (36... Be7 $11 {and Black is okay.}) 37. Qxd6 $18 {[%emt 0:08:47] Chess con chili.} Qc4+ {[%emt 0:01:54]} 38. Ke1 {[%emt 0:00:40]} Qc1+ {[%emt 0:01:44] [#]} 39. Rd1 $1 {[%emt 0:00:47]} Qxb2 {[%emt 0:00:36]} 40. Qxg6+ {[%emt 0:00:07]} Kf8 {[%emt 0:00:12]} 41. Qd6+ {[%emt 0:30:58]} Ke8 {[%emt 0:31:33]} 42. Qb4 {[%emt 0:02:40]} Qc2 {[%emt 0:00:00] [#]} (42... Rc2 {was necessary.} 43. Qxb2 Rxb2) 43. Rd2 $1 {[%emt 0:00:00]} Qc1+ {[%emt 0:00:00]} 44. Ke2 {[%emt 0:00:00]} Rh7 {[%emt 0:00:00]} 45. Qb5+ {[%emt 0:00:00]} Kf7 $2 {[%emt 0:00:00]} (45... Kf8) 46. Qd7+ {[%emt 0:00:00] White is clearly winning.} Be7 {[%emt 0:00:00]} 47. Qe6+ {[%emt 0:00:00]} ({Worse is} 47. d6 Qc4+ 48. Rd3 Qc2+ 49. Rd2 Qc4+ 50. Rd3 Qc2+ 51. Rd2 Qc4+ $11) 47... Kf8 {[%emt 0:00:00]} 48. d6 {[%emt 0:00:00] Weighted Error Value: White=0.16 (very precise) /Black=0.37} 1-0

[Event "SVK ECo-C Extraliga 2021-22"]
[Site "Slovakia"]
[Date "2022.06.10"]
[Round "9.1"]
[White "Petenyi, Tamas"]
[Black "Ftacnik, Lubomir"]
[Result "1/2-1/2"]
[ECO "B90"]
[WhiteElo "2452"]
[BlackElo "2508"]
[Annotator "TA"]
[PlyCount "55"]
[EventDate "2021.10.21"]
[EventType "team-tourn"]
[EventCountry "SVK"]
[SourceTitle "playchess.com"]
[Source "ChessBase"]
[SourceQuality "1"]
[TimeControl "40/5400+30:1800+30"]

{[%evp 19,55,14,0,0,0,0,0,0,0,0,5,0,28,30,29,0,35,43,60,0,0,0,0,0,0,0,0,0,0,0,0,0,0,0,0,0,0,0]} 1. e4 {[%emt 0:00:38]} c5 {[%emt 0:00:07]} 2. Nf3 {[%emt 0:01:12]} d6 {[%emt 0:00:10]} 3. d4 {[%emt 0:00:15]} cxd4 {[%emt 0:00:10]} 4. Nxd4 {[%emt 0:00:10]} Nf6 {[%emt 0:00:09]} 5. Nc3 {[%emt 0:00:09]} a6 {[%emt 0:00:13]} 6. Be3 {[%emt 0:01:54]} e5 {[%emt 0:00:30]} 7. Nb3 {[%emt 0:00:10]} Be7 {[%emt 0:00:43]} 8. f3 {[%emt 0:01:10]} h5 {[%emt 0:03:27]} 9. Qd2 {[%emt 0:01:29]} Be6 {[%emt 0:01:04]} 10. O-O-O {[%emt 0:01:39]} Nbd7 {[%emt 0:00:32]} 11. Nd5 {[%emt 0:05:37] B90: Sicilian Najdorf: Unusual White 6th moves, 6 Be3 Ng4 and 6 Be3 e5.} Nxd5 {[%emt 0:01:39] 11...Nxd5 is better than 11...Bxd5.} 12. exd5 {[%emt 0:00:10]} Bf5 {[%emt 0:00:02]} 13. Kb1 {[%emt 0:04:04]} Rc8 {[%emt 0:00:45]} 14. Bd3 {[%emt 0:00:53]} Bxd3 {[%emt 0:00:31]} 15. Qxd3 {[%emt 0:00:08]} Qc7 {[%emt 0:02:41]} 16. Nd2 {[%emt 0:09:19]} g6 {[%emt 0:05:49]} 17. f4 {[%emt 0:14:24]} exf4 {[%emt 0:04:08]} 18. Bxf4 {[%emt 0:04:12] aiming for Rhe1.} O-O {[%emt 0:00:45]} 19. Ne4 {[%emt 0:13:32]} ({Better is} 19. g4 $14) 19... Nc5 $11 {[%emt 0:04:49] The position is equal.} 20. Nxc5 {[%emt 0:03:34]} Qxc5 {[%emt 0:00:03] [#]} 21. Bh6 $146 {[%emt 0:08:18] [#] Hoping for Rhf1.} ({Predecessor:} 21. Be3 Qc7 22. Bd4 Bg5 23. h4 Bh6 24. g4 hxg4 25. h5 Bg7 26. hxg6 fxg6 27. Qxg6 Rf4 28. Bxg7 Qxg7 29. Qe6+ {1-0 (29) Przybylski,W (2321)-Antonova,N (1842) Chess.com INT 2022}) 21... Rfe8 {[%emt 0:01:44]} 22. Rhf1 {[%cal Of1f7] Strongly threatening Rxf7!} Qc4 {[%emt 0:15:27]} 23. Qxc4 {[%emt 0:07:54]} Rxc4 {[%emt 0:00:09]} 24. Rde1 {[%emt 0:00:26]} Rc5 {[%emt 0:25:30]} 25. Bg5 {[%emt 0:01:46]} Kf8 {[%emt 0:00:35]} 26. Bh6+ {[%emt 0:00:05]} Kg8 {[%emt 0:00:02]} 27. Bg5 {[%emt 0:00:06]} Kf8 {[%emt 0:00:06]} 28. Bh6+ {[%emt 0:00:05] Weighted Error Value: White=0.07 (flawless) /Black=0.04 (flawless)} 1/2-1/2

[Event "SVK ECo-C Extraliga 2021-22"]
[Site "Slovakia"]
[Date "2022.06.10"]
[Round "9.2"]
[White "Neugebauer, Martin"]
[Black "Simacek, Pavel"]
[Result "1-0"]
[ECO "C77"]
[WhiteElo "2502"]
[BlackElo "2463"]
[Annotator "TA"]
[PlyCount "67"]
[EventDate "2021.10.21"]
[EventType "team-tourn"]
[EventCountry "SVK"]
[SourceTitle "playchess.com"]
[Source "ChessBase"]
[SourceQuality "1"]
[TimeControl "40/5400+30:1800+30"]

{[%evp 13,67,4,16,0,39,34,60,9,23,20,73,34,54,47,63,54,85,97,83,90,91,83,90,82,74,66,145,155,162,160,147,143,226,165,204,201,211,229,334,336,335,328,335,330,318,244,647,654,718,697,713,698,686,705,29988,29989]} 1. e4 {[%emt 0:00:12]} e5 {[%emt 0:00:35]} 2. Nf3 {[%emt 0:00:18]} Nc6 {[%emt 0:00:05]} 3. Bb5 {[%emt 0:00:48]} a6 {[%emt 0:00:26]} 4. Ba4 {[%emt 0:00:06]} Nf6 {[%emt 0:00:08]} 5. d3 {[%emt 0:00:40]} b5 {[%emt 0:00:47]} 6. Bb3 {[%emt 0:01:49]} Bc5 {[%emt 0:00:08]} 7. c3 {[%emt 0:00:50]} d6 {[%emt 0:04:11]} 8. O-O {[%emt 0:00:59] C77: Ruy Lopez: 3...a6 4 Ba4 Nf6, unusual lines.} Bb6 {[%emt 0:05:17] 8...h6 is setting a new trend.} 9. a4 {[%emt 0:03:37] aiming for axb5.} Rb8 {[%emt 0:08:15]} 10. Bg5 {[%emt 0:08:39]} (10. axb5 $14 axb5 11. Na3) 10... h6 $11 {[%emt 0:00:46]} 11. Bh4 {[%emt 0:00:10]} Ne7 {[%emt 0:16:28]} (11... g5 $11 {keeps the balance.} 12. axb5 Na5) 12. axb5 {[%emt 0:04:37]} axb5 {[%emt 0:00:09] [#]} 13. Bxf6 $146 {[%emt 0:05:56]} ({Predecessor:} 13. d4 Ng6 14. dxe5 Nxh4 15. Nxh4 dxe5 16. Qxd8+ Kxd8 17. Bxf7 Rf8 18. Bg6 Be6 19. Nd2 {0-1 (62) Matinian,N (2454)-Pichot,A (2630) Chess.com INT 2021}) 13... gxf6 {[%emt 0:00:07]} 14. Nh4 {[%emt 0:00:10]} Be6 {[%emt 0:28:24]} 15. Bxe6 {[%emt 0:03:59] White now steadily converts the win.} fxe6 {[%emt 0:02:55]} 16. Na3 {[%emt 0:00:28]} c6 {[%emt 0:02:04]} 17. Nc2 {[%emt 0:02:11]} Kd7 {[%emt 0:01:54]} 18. c4 {[%emt 0:03:22]} Qg8 {[%emt 0:05:54]} 19. cxb5 {[%emt 0:01:44]} cxb5 {[%emt 0:00:07]} (19... h5 $1 $14) 20. d4 $16 {[%emt 0:03:01]} Ng6 {[%emt 0:07:46]} 21. Nxg6 {[%emt 0:04:37]} Qxg6 {[%emt 0:00:03] [#]} 22. Qd3 {[%emt 0:01:40] Strongly threatening Ra6.} (22. dxe5 fxe5 23. Qd3 Rhc8 $14) 22... Ke7 {[%emt 0:00:22]} (22... Rhc8 $16 23. Ra6 (23. Qxb5+ Ke7 $14) 23... Ke7) 23. Rfd1 {[%emt 0:02:36][%cal Bf1d1,Bd1d3,Bd3g3][%mdl 32]} Rhe8 {[%emt 0:08:48]} 24. Ra6 {[%emt 0:10:22] And now dxe5 would win.} ({Don't play} 24. dxe5 $6 dxe5 25. Nb4 Kf8 $16) 24... Kf7 {[%emt 0:02:01]} 25. d5 {[%emt 0:02:38]} (25. Qxb5 Qxe4 26. Rxb6 Qxc2 $11) 25... exd5 {[%emt 0:01:33]} (25... Kg7 {is a better defense.} 26. dxe6 Rxe6) 26. Qxd5+ $18 {[%emt 0:00:17]} Kg7 {[%emt 0:00:03]} 27. Rd3 {[%emt 0:01:51] [#] Hoping for Rg3.} ({Inferior is} 27. Qxd6 Rbd8 28. Qd7+ Rxd7 $15) 27... Kh8 {[%emt 0:00:51]} (27... Rec8 $2 28. Rg3 Rxc2 29. Rxg6+ Kxg6 30. Qd1 Rxb2 31. h4 Bxf2+ 32. Kh2) 28. Rg3 {[%emt 0:06:45]} Qh7 {[%emt 0:00:04]} 29. Qxd6 {[%emt 0:05:09]} Qf7 {[%emt 0:00:12]} (29... Qe7 30. Qd1 (30. Rxb6 Rbd8 $11) 30... Qc5) 30. Rxb6 {[%emt 0:05:22]} Rbd8 {[%emt 0:03:06]} 31. Qb4 {[%emt 0:00:35]} Rd1+ {[%emt 0:00:58]} 32. Ne1 {[%emt 0:00:03]} Qe7 {[%emt 0:00:13]} 33. Qc3 {[%emt 0:00:51]} Qc7 {[%emt 0:01:46]} 34. Rxf6 {[%emt 0:00:14] Weighted Error Value: White=0.12 (very precise) /Black=0.65} (34. Qxc7 $2 Rxe1#) 1-0

[Event "SVK ECo-C Extraliga 2021-22"]
[Site "Slovakia"]
[Date "2022.06.10"]
[Round "9.2"]
[White "Haring, Filip"]
[Black "Zilka, Stepan"]
[Result "1-0"]
[ECO "C55"]
[WhiteElo "2444"]
[BlackElo "2605"]
[Annotator "TA"]
[PlyCount "91"]
[EventDate "2021.10.21"]
[EventType "team-tourn"]
[EventCountry "SVK"]
[SourceTitle "playchess.com"]
[Source "ChessBase"]
[SourceQuality "1"]
[TimeControl "40/5400+30:1800+30"]

{[%evp 13,91,29,47,9,38,0,0,5,0,-14,12,-12,-18,-23,0,-6,4,6,23,20,35,33,62,64,50,52,61,-105,-122,-131,-24,-63,-59,-37,-33,-58,-43,-47,-56,-41,-51,-46,8,8,8,8,8,8,8,0,0,0,59,0,0,0,0,0,0,0,0,0,6458,6458,5272,4560,3262,2283,5988,5988,5828,5089,5085,2299,29984,29985,29987,29988,29988,29989]} 1. e4 {[%emt 0:00:08]} e5 {[%emt 0:00:09]} 2. Nf3 {[%emt 0:00:11]} Nc6 {[%emt 0:00:05]} 3. Bc4 {[%emt 0:00:09]} Nf6 {[%emt 0:00:12]} 4. d3 {[%emt 0:00:13]} Be7 {[%emt 0:02:37]} 5. O-O {[%emt 0:00:27]} O-O {[%emt 0:00:08]} 6. a4 {[%emt 0:01:13]} d5 {[%emt 0:01:48]} 7. exd5 {[%emt 0:00:47]} Nxd5 {[%emt 0:00:06]} 8. Re1 {[%emt 0:07:09] C55: Two Knights: 4 d3, 4 d4 exd4 5 e5 and Max Lange Attack.} Bg4 {[%emt 0:00:06]} 9. h3 {[%emt 0:02:11]} Bxf3 {[%emt 0:00:15]} 10. Qxf3 {[%emt 0:01:11] The position is equal.} Nb6 {[%emt 0:00:09] [#]} 11. b3 $146 {[%emt 0:16:02]} ({Predecessor:} 11. Nd2 Nxc4 12. Nxc4 Bf6 13. Bd2 Re8 14. Bc3 Re6 15. Re4 Qd7 16. Rae1 Rae8 17. b4 {1-0 (32) Nihal,S (2620)-Jumabayev,R (2654) Chess.com INT 2020}) 11... Bf6 {[%emt 0:21:35][%cal Oe5e4] [#] Strongly threatening ...e4!} 12. Re4 {[%emt 0:04:36]} (12. Nc3 {feels hotter.} e4 13. dxe4 Qd4 14. Bb2) 12... Nxc4 {[%emt 0:00:51]} 13. bxc4 {[%emt 0:01:27]} Bg5 {[%emt 0:00:34]} 14. Nc3 {[%emt 0:14:09][%cal Bb1c3,Bc3d5,Bd5e7][%mdl 32]} f5 {[%emt 0:05:25]} 15. Re1 {[%emt 0:01:40]} Nd4 {[%emt 0:02:19]} 16. Qd5+ {[%emt 0:07:29]} Qxd5 {[%emt 0:00:16]} 17. Nxd5 {[%emt 0:00:04]} Bd8 {[%emt 0:05:40]} 18. Rxe5 {[%emt 0:04:09]} c6 19. Ne7+ {[%emt 0:07:34]} Kf7 $1 {[%emt 0:13:57][%cal Bg8f7,Bf7e7,Be7e6][%mdl 32]} 20. Be3 $2 {[%emt 0:24:04] White is more active.} (20. Nxf5 $14 Bf6 21. Nd6+ Kg8 22. Bf4) 20... Nxc2 $17 {[%emt 0:06:30]} 21. Rb1 {[%emt 0:00:16] [#]} Bc7 {[%emt 0:12:37]} (21... Bxe7 $2 22. Rxb7 Nxe3 23. Rexe7+ Kf6 24. fxe3 $18) ({Black should try} 21... Re8 $1 $17 {[%cal Re8e7]} 22. Ng6 hxg6 23. Rxb7+ Re7 24. Rexe7+ Bxe7) 22. Rxf5+ {[%emt 0:01:11]} Kxe7 {[%emt 0:00:05]} 23. Bc5+ {[%emt 0:00:41]} Bd6 {[%emt 0:00:01]} 24. Rxb7+ {[%emt 0:04:01]} Ke6 {[%emt 0:00:08]} 25. Rxf8 {[%emt 0:00:11]} Bxf8 {[%emt 0:01:19]} 26. Bxf8 {[%emt 0:01:41]} Rxf8 {[%emt 0:00:04]} 27. Rxa7 {[%emt 0:00:08]} Rf7 {[%emt 0:00:39]} ({Better is} 27... Kf6 $15) 28. Rxf7 $11 {[%emt 0:00:30]} Kxf7 {[%emt 0:00:05][%mdl 4096] Endgame KN-KP} 29. a5 {[%emt 0:00:03] a6 is the strong threat.} Nb4 {[%emt 0:00:15]} 30. d4 {[%emt 0:00:23]} Ke6 {[%emt 0:02:00]} 31. Kf1 {[%emt 0:00:30]} Kf5 {[%emt 0:00:30]} 32. f3 {[%emt 0:00:30]} Kf4 {[%emt 0:00:30]} (32... Nc2 $11) 33. Ke2 {[%emt 0:01:28]} (33. Kf2 $1 $14) 33... g5 {[%emt 0:04:33]} 34. Kd2 {[%emt 0:00:31]} h5 {[%emt 0:00:11]} 35. Kc3 {[%emt 0:00:26]} Na6 {[%emt 0:00:06]} 36. g4 {[%emt 0:00:35]} hxg4 {[%emt 0:10:09]} 37. hxg4 {[%emt 0:00:05]} c5 $2 {[%emt 0:01:28][%mdl 8192]} (37... Kxf3 $2 38. d5 Nc5 39. d6 (39. dxc6 Na6 $11) 39... Ne4+ 40. Kd4 Nxd6 41. a6 $18) (37... Nc7 $11) 38. d5 $18 {[%emt 0:00:51] Hoping for d6.} Ke5 {[%emt 0:00:20]} 39. Kd3 {[%emt 0:00:32]} Nb4+ {[%emt 0:01:29]} 40. Ke3 {[%emt 0:00:31][%cal Of3f4] Black must now prevent f4+!} Nc2+ {[%emt 0:00:39]} 41. Kd2 {[%emt 0:04:33]} Nb4 {[%emt 0:00:00]} 42. f4+ {[%emt 0:03:29]} gxf4 {[%emt 0:00:13]} 43. g5 {[%emt 0:00:10][%cal Bg4g5,Bg5g6,Bg6g7][%mdl 32] Threatens to win with g6.} Nxd5 {[%emt 0:24:56]} 44. cxd5 {[%emt 0:06:02] White mates.} c4 {[%emt 0:00:20]} 45. g6 {[%emt 0:00:07]} f3 {[%emt 0:00:12]} 46. g7 {[%emt 0:00:18] Weighted Error Value: White=0.18 (very precise) /Black=0.32} ({Not} 46. Ke3 c3 47. Kxf3 c2 $11) 1-0